bitfinex/quotes_ETHUSD_20250505
["timestamp","ask_amount","ask_price","bid_price","bid_amount"]
[1746425376983,6.09,1819.8,1819.6,4.861]
[1746425377284,6.09,1819.8,1819.7,0.15248918]
[1746425377906,6.09,1820.1,1819.9,5.49464236]
[1746425378107,6.09,1820.2,1820.0,5.49436937]
[1746425378281,6.09,1820.2,1820.0,10.50784516]
[1746425379707,6.09,1820.2,1820.0,10.56278441]
[1746425380015,6.09,1820.2,1820.1,5.49420361]
[1746425380317,2.40638485,1820.4,1820.1,5.64497814]
[1746425382006,6.09,1820.5,1820.1,11.19389271]
[1746425382179,6.09,1820.5,1820.2,5.49387024]
[1746425382698,6.09,1820.5,1820.3,0.1507656]
[1746425383907,6.09,1820.5,1820.2,5.49387081]
[1746425384111,6.09,1820.5,1820.4,0.15076114]
[1746425384290,6.09,1820.5,1820.3,0.1507656]
[1746425384506,6.09,1820.5,1820.4,0.15076114]
[1746425384900,6.09,1820.5,1820.3,5.49357209]
[1746425385102,6.09,1820.5,1820.4,0.14541122]
[1746425385501,6.09,1820.5,1820.3,5.49357209]
[1746425385702,6.09,1820.5,1820.4,0.14541122]
[1746425386002,6.09,1820.5,1820.3,1.25721099]
[1746425386191,6.09,1820.5,1820.4,0.14541122]
[1746425386393,6.09,1820.5,1820.3,1.25721099]
[1746425386702,6.09,1820.5,1820.4,0.14541122]
[1746425387114,6.09,1820.5,1820.3,1.25721099]
[1746425387281,6.09,1820.5,1820.4,0.14541122]
[1746425387608,19.51813552,1820.5,1820.1,4.86]
[1746425387820,14.02488127,1820.5,1820.1,4.86]
[1746425387998,5.49343103,1820.4,1820.2,0.14542014]
[1746425388186,5.49343103,1820.4,1820.1,4.86]
[1746425388391,7.72228485,1820.3,1820.1,4.86]
[1746425388592,7.72228485,1820.3,1820.2,0.14489834]
[1746425388829,7.72228485,1820.3,1820.1,4.86]
[1746425388981,7.72228485,1820.3,1820.2,0.14489834]
[1746425389403,7.72228485,1820.3,1820.1,4.86]
[1746425389609,7.72228485,1820.3,1820.2,0.14489834]
[1746425389789,7.72228485,1820.3,1820.1,4.86]
[1746425390095,0.8257,1820.2,1820.1,4.86]
[1746425390421,11.81375444,1820.2,1819.8,4.859]
[1746425390725,11.81375444,1820.2,1819.8,10.35407765]
[1746425390726,7.72228485,1820.1,1819.8,10.35407765]
[1746425391420,7.72228485,1820.1,1819.9,0.14491174]
[1746425391421,0.8257,1820.0,1819.9,0.14491174]
[1746425392117,6.32020549,1820.0,1819.9,0.14491174]
[1746425392288,8.273891,1820.0,1819.9,0.14491174]
[1746425392919,14.913891,1820.0,1819.9,0.14491174]
[1746425393322,5.4948074,1819.9,1819.8,4.859]
[1746425393526,7.12709225,1819.9,1819.8,4.859]
[1746425393821,5.4948074,1819.9,1819.8,4.859]
[1746425394013,7.12709225,1819.9,1819.4,10.40425672]
[1746425394322,1.63228485,1819.5,1819.2,4.853]
[1746425394535,7.12840763,1819.5,1819.2,4.853]
[1746425395199,13.21840763,1819.5,1819.2,4.853]
[1746425395735,6.09,1819.5,1819.2,4.853]
[1746425395927,11.58618909,1819.5,1819.2,4.853]
[1746425399161,5.49637563,1819.4,1819.2,4.853]
[1746425399428,11.58620227,1819.5,1819.2,4.853]
[1746425400144,12.39333288,1819.4,1819.2,4.853]
[1746425402147,6.897,1819.4,1819.2,4.853]
[1746425403163,9.11503215,1819.3,1818.9,5.26257]
[1746425403308,5.49718741,1819.2,1818.9,5.26257]
[1746425403512,9.11503215,1819.3,1818.9,5.26257]
[1746425403513,14.61184368,1819.3,1818.9,5.26257]
[1746425403936,5.49699258,1819.2,1818.9,5.26257]
[1746425406422,5.49699258,1819.2,1819.0,0.13271083]
[1746425406850,11.58680674,1819.3,1819.0,0.13271083]
[1746425407147,17.08367718,1819.3,1819.0,0.13271083]
[1746425407354,17.08369272,1819.3,1819.0,0.13271083]
[1746425407656,9.32065605,1819.1,1819.0,0.13271083]
[1746425407954,5.49752611,1819.0,1818.9,0.40857]
[1746425408353,5.49752611,1819.0,1818.9,0.5412853]
[1746425408738,6.83752611,1819.0,1818.9,0.5412853]
[1746425410854,0.79,1819.0,1818.9,0.5412853]
[1746425411751,7.82776894,1819.0,1818.9,0.5412853]
[1746425411921,13.91776894,1819.0,1818.9,0.5412853]
[1746425414559,6.09,1819.0,1818.9,0.5412853]
[1746425414731,11.58752611,1819.0,1818.9,0.5412853]
[1746425414928,15.91692611,1819.0,1818.9,0.5412853]
[1746425415738,17.55212036,1819.0,1818.9,0.5412853]
[1746425421459,15.91692611,1819.0,1818.9,0.5412853]
[1746425421682,17.00212036,1819.0,1818.9,0.5412853]
[1746425421963,19.25205776,1819.0,1818.9,0.5412853]
[1746425422260,19.80205776,1819.0,1818.9,0.5412853]
[1746425430258,19.80205776,1819.0,1818.9,0.40857]
[1746425430971,19.80205776,1819.0,1818.9,0.55328064]
[1746425432240,19.80205776,1819.0,1818.9,0.40857]
[1746425432972,19.80205776,1819.0,1818.9,0.55328064]
[1746425433273,19.80205776,1819.0,1818.9,0.40857]
[1746425433863,19.80205776,1819.0,1818.9,0.55328064]
[1746425434774,19.80205776,1819.0,1818.9,0.40857]
[1746425441878,19.80205776,1819.0,1818.4,4.856]
[1746425441879,5.49843294,1818.7,1818.4,4.856]
[1746425442097,1.63519425,1818.5,1818.1,4.85]
[1746425442255,5.49950435,1818.4,1818.1,4.85]
[1746425443963,5.49934007,1818.4,1818.1,4.85]
[1746425446189,5.49967594,1818.3,1818.1,4.85]
[1746425446386,11.58967593,1818.3,1818.1,4.85]
[1746425446556,6.08999999,1818.3,1818.1,4.85]
[1746425447490,6.08999999,1818.3,1818.1,11.38518424]
[1746425447795,6.08999999,1818.3,1818.1,11.38515756]
[1746425450567,6.08999999,1818.3,1818.1,5.88505074]
[1746425450767,6.08999999,1818.3,1817.9,5.50063926]
[1746425451070,11.58978734,1818.3,1817.9,11.00125018]
[1746425451257,11.58978734,1818.3,1817.9,5.50061092]
[1746425451464,6.08999999,1818.3,1817.9,5.50061092]
[1746425451664,6.08999999,1818.3,1818.0,0.1472297]
[1746425451863,6.08999999,1818.3,1818.0,5.64776575]
[1746425452063,6.08999999,1818.3,1818.0,0.1472297]
[1746425452382,11.58968657,1818.3,1818.0,0.1472297]
[1746425453400,6.08999999,1818.3,1818.0,0.1472297]
[1746425453893,6.08999999,1818.3,1818.0,5.6477542]
[1746425454500,6.08999999,1818.3,1818.0,0.1472297]
[1746425454688,11.58965421,1818.3,1818.0,0.1472297]
[1746425456204,6.08999999,1818.3,1818.0,5.64777195]
[1746425456406,11.5896434,1818.3,1818.0,0.1472297]
[1746425457732,11.5896434,1818.3,1818.0,5.64777461]
[1746425459597,11.58980705,1818.3,1818.0,0.1472297]
[1746425459802,7.24898069,1818.3,1817.8,5.50113048]
[1746425459969,7.24898069,1818.3,1818.1,0.14768197]
[1746425459970,5.50009121,1818.2,1818.1,0.14768197]
[1746425460170,5.50009121,1818.2,1817.8,5.50113048]
[1746425460398,14.3839761,1818.3,1818.1,0.14931306]
[1746425460705,14.3839761,1818.3,1817.9,5.5008295]
[1746425460871,14.3839761,1818.3,1818.2,0.14930858]
[1746425461072,14.3839761,1818.3,1817.9,5.5008295]
[1746425461268,14.3839761,1818.3,1818.2,0.14930858]
[1746425461474,14.3839761,1818.3,1817.9,5.5008295]
[1746425461698,14.3839761,1818.3,1818.2,0.14930858]
[1746425461893,14.3839761,1818.3,1817.9,5.5008295]
[1746425462103,14.3839761,1818.3,1818.2,0.14930858]
[1746425462271,14.3839761,1818.3,1817.9,5.5008295]
[1746425462472,14.3839761,1818.3,1818.2,0.14930858]
[1746425462793,7.24898069,1818.3,1818.2,0.14930858]
[1746425462984,6.08999999,1818.3,1818.0,5.50037641]
[1746425463311,6.08999999,1818.3,1818.2,0.14930858]
[1746425463509,6.08999999,1818.3,1818.1,0.14931306]
[1746425463711,11.44573677,1818.3,1818.2,0.14930858]
[1746425463917,13.14026542,1818.3,1818.2,0.14930858]
[1746425464225,5.50048713,1818.1,1817.7,10.35145028]
[1746425464437,17.14103681,1818.1,1817.7,4.90500788]
[1746425464577,11.64048713,1818.1,1817.7,4.85]
[1746425464902,17.14100879,1818.1,1817.7,4.85]
[1746425465105,6.14,1818.1,1817.7,1.09016842]
[1746425465311,6.14,1818.1,1817.8,5.50109278]
[1746425466716,6.14,1818.1,1817.9,0.13770979]
[1746425467400,6.14,1818.1,1817.9,5.63855901]
[1746425467711,6.14,1818.3,1818.0,5.50025384]
[1746425467910,6.6845824,1818.5,1818.2,5.49978296]
[1746425467911,6.55090504,1818.5,1818.2,5.49978296]
[1746425468119,6.14,1818.5,1818.3,5.49963677]
[1746425468287,6.14,1818.5,1818.3,5.63732866]
[1746425470739,6.14,1818.5,1818.4,5.49934007]
[1746425471024,6.14,1818.5,1818.4,5.69201786]
[1746425471192,6.14,1818.5,1818.4,6.81118332]
[1746425471822,6.14,1818.5,1818.4,6.75619295]
[1746425473429,17.13654889,1818.8,1818.4,6.75619295]
[1746425473593,6.14,1818.8,1818.4,0.13768742]
[1746425473793,12.05467683,1818.8,1818.4,5.49933325]
[1746425473991,12.05467683,1818.8,1818.5,0.13768295]
[1746425474792,6.14,1818.8,1818.5,0.13768295]
[1746425474993,6.14,1818.9,1818.8,5.49813063]
[1746425475188,6.14,1819.0,1818.8,5.49813063]
[1746425475514,6.14,1819.0,1818.8,5.63580017]
[1746425476318,6.14,1819.0,1818.9,5.49782835]
[1746425476527,12.05935379,1819.3,1818.9,5.49782835]
[1746425476698,14.05579345,1819.3,1818.9,5.63549342]
[1746425478527,5.4969429,1819.2,1818.9,0.13766507]
[1746425478831,5.4969429,1819.2,1818.8,10.33897957]
[1746425479127,5.4969429,1819.2,1819.0,0.13186176]
[1746425479296,5.4969429,1819.2,1818.9,0.13186623]
[1746425479497,5.4969429,1819.2,1819.1,0.13185729]
[1746425479725,5.4969429,1819.2,1819.0,0.13186176]
[1746425479929,7.13213715,1819.2,1819.1,0.13185729]
[1746425480226,7.13213715,1819.2,1818.8,10.33897957]
[1746425480426,7.13213715,1819.2,1819.1,0.13185729]
[1746425480627,7.13213715,1819.2,1818.8,11.92270829]
[1746425480828,7.13213715,1819.2,1819.1,0.13185729]
[1746425480995,7.13213715,1819.2,1818.8,11.92270829]
[1746425481325,7.13213715,1819.2,1819.1,0.13185729]
[1746425481928,7.13213715,1819.2,1818.8,11.92270829]
[1746425482129,7.13213715,1819.2,1819.1,0.13185729]
[1746425482507,7.13213715,1819.2,1818.8,11.92270829]
[1746425482708,7.13213715,1819.2,1819.1,0.13185729]
[1746425482909,7.13213715,1819.2,1818.8,11.92270829]
[1746425483121,7.13213715,1819.2,1819.1,0.13185729]
[1746425483328,7.13213715,1819.2,1818.8,11.92270829]
[1746425483502,7.13213715,1819.2,1819.1,0.13185729]
[1746425484243,7.13213715,1819.2,1818.8,10.33897957]
[1746425484429,7.13213715,1819.2,1819.1,0.12651446]
[1746425484634,7.13213715,1819.2,1818.8,10.33897957]
[1746425484635,7.95893715,1819.2,1818.8,10.33897957]
[1746425484819,7.95893715,1819.2,1819.1,0.12651446]
[1746425485127,6.32462835,1818.9,1818.8,4.841]
[1746425485328,5.49830371,1818.8,1818.4,4.841]
[1746425485530,0.8268,1818.7,1818.4,10.34030411]
[1746425485828,0.8268,1818.7,1818.4,4.841]
[1746425486041,6.32525552,1818.7,1818.4,4.841]
[1746425486401,0.8268,1818.7,1818.4,4.841]
[1746425486601,0.8268,1818.7,1818.4,10.34032165]
[1746425488334,6.14,1818.8,1818.6,5.49861763]
[1746425488521,6.14,1818.8,1818.5,5.49886629]
[1746425488833,11.63817382,1818.8,1818.4,10.34022607]
[1746425489000,6.25306595,1818.7,1818.4,4.841]
[1746425489197,7.65589197,1818.7,1818.4,4.841]
[1746425490750,6.14,1818.6,1818.4,4.841]
[1746425491045,5.49903766,1818.5,1818.4,4.841]
[1746425491212,0.769,1818.4,1818.1,23.035]
[1746425491412,12.40838215,1818.4,1818.1,23.035]
[1746425491810,14.0435764,1818.4,1818.1,23.035]
[1746425492133,5.49966417,1818.3,1818.1,23.035]
[1746425492347,6.909,1818.4,1818.1,23.035]
[1746425492527,6.14,1818.4,1818.1,28.53521569]
[1746425493135,6.14,1818.4,1818.2,5.49975096]
[1746425493445,6.14,1818.4,1818.3,5.49964252]
[1746425496656,6.14,1818.4,1818.3,13.61151359]
[1746425496819,11.63844687,1818.7,1818.3,13.61151359]
[1746425498162,6.14,1818.7,1818.4,5.49933652]
[1746425498365,6.14,1818.7,1818.4,5.49910412]
[1746425498531,6.14,1818.7,1818.5,0.11186213]
[1746425499270,0.7722,1818.6,1818.5,0.11186213]
[1746425499628,7.50935565,1818.7,1818.5,0.11186213]
[1746425500523,7.50935565,1818.7,1818.3,13.49942573]
[1746425500748,13.00788153,1818.7,1818.6,0.11185766]
[1746425500963,13.00788153,1818.7,1818.3,13.49942573]
[1746425501161,13.00788153,1818.7,1818.6,0.11185766]
[1746425501359,13.00788153,1818.7,1818.3,13.49942573]
[1746425501662,6.14,1818.7,1818.4,13.4993278]
[1746425501865,6.14,1818.7,1818.4,13.6111944]
[1746425502570,6.14,1818.7,1818.4,13.61101433]
[1746425502864,6.14,1818.7,1818.5,5.49891532]
[1746425503067,6.14,1818.7,1818.5,5.61077745]
[1746425503572,6.14,1818.7,1818.5,13.61077745]
[1746425504773,6.14,1818.7,1818.5,8.11186213]
[1746425505181,6.9126,1818.7,1818.5,8.11186213]
[1746425505476,13.85775541,1818.7,1818.5,8.11186213]
[1746425505650,13.85775541,1818.7,1818.5,0.11186213]
[1746425505850,13.85775541,1818.7,1818.3,13.49945523]
[1746425506052,13.85775541,1818.7,1818.6,0.11146741]
[1746425506252,13.85775541,1818.7,1818.3,13.49945523]
[1746425506447,8.35921306,1818.7,1818.6,0.11146741]
[1746425506764,8.35921306,1818.7,1818.4,5.49933278]
[1746425506967,13.8577251,1818.7,1818.6,0.11146741]
[1746425507135,5.49873529,1818.6,1818.5,0.11147188]
[1746425507338,9.06969048,1818.6,1818.3,8.0]
[1746425507581,1.63519425,1818.6,1818.3,5.49962559]
[1746425508675,7.77519425,1818.6,1818.3,13.49962559]
[1746425508980,6.14,1818.6,1818.3,13.49940453]
[1746425509332,6.14,1818.6,1818.4,5.49928613]
[1746425509958,6.14,1818.6,1818.3,13.49950561]
[1746425510362,11.63877225,1818.6,1818.3,8.0]
[1746425510646,13.97962633,1818.6,1818.2,13.49978153]
[1746425510878,15.61482058,1818.6,1818.2,13.49978153]
[1746425511443,7.94093432,1818.4,1818.3,0.11180606]
[1746425511992,14.08093432,1818.4,1818.3,0.11180606]
[1746425512271,15.98933214,1818.4,1818.3,0.11180606]
[1746425512789,5.49982565,1818.3,1818.1,4.832]
[1746425513093,11.63982565,1818.3,1817.9,8.0]
[1746425513667,11.63982565,1818.3,1817.8,12.833]
[1746425513668,13.39618622,1818.2,1817.8,12.833]
[1746425513874,7.89594823,1818.2,1817.8,12.833]
[1746425514563,7.89594823,1818.2,1817.8,10.33414078]
[1746425515455,9.84952164,1818.2,1817.8,18.33414078]
[1746425516474,4.34946766,1818.2,1817.8,18.33390946]
[1746425516877,10.26160076,1818.2,1817.8,18.33390946]
[1746425517379,4.76164968,1818.2,1817.8,18.33390946]
[1746425517582,16.40169827,1818.2,1817.8,18.33390946]
[1746425517784,21.90193029,1818.2,1817.8,12.833]
[1746425517988,16.40169827,1818.2,1817.8,12.833]
[1746425518583,16.40169827,1818.2,1817.8,18.33411]
[1746425518786,1.64016983,1818.1,1817.8,18.33411]
[1746425518987,1.64016983,1818.1,1817.8,12.833]
[1746425519282,7.14046679,1818.1,1817.8,12.833]
[1746425519487,0.8247,1818.0,1817.8,4.833]
[1746425519980,7.13590621,1818.0,1817.7,8.0]
[1746425520189,1.63519425,1817.8,1817.7,8.0]
[1746425520400,7.77519425,1817.8,1817.7,8.0]
[1746425520696,6.14,1817.8,1817.5,10.32703152]
[1746425521199,6.14,1817.8,1817.5,5.50203152]
[1746425523209,11.64126427,1817.8,1817.4,18.3271449]
[1746425523686,15.14451916,1817.8,1817.4,18.3271449]
[1746425524403,15.14451916,1817.8,1817.4,23.82927948]
[1746425525007,9.64325489,1817.8,1817.4,23.82927948]
[1746425525210,6.14,1817.8,1817.5,5.50200213]
[1746425525362,6.14,1817.8,1817.6,5.55659471]
[1746425525768,6.14,1817.8,1817.7,5.50145788]
[1746425526414,6.14,1817.8,1817.7,5.6117907]
[1746425527597,6.14,1817.8,1817.7,13.6117907]
[1746425528013,6.14,1817.8,1817.7,15.52314257]
[1746425529268,6.14,1818.1,1817.8,5.50087011]
[1746425529464,6.14,1818.1,1817.8,10.3818759]
[1746425529669,6.14,1818.2,1818.0,5.500264]
[1746425529909,6.9632,1818.3,1817.9,5.61107513]
[1746425530212,12.46296732,1818.3,1818.0,0.11031939]
[1746425530582,12.46296732,1818.3,1818.0,8.11031939]
[1746425532284,12.87152311,1818.3,1818.0,8.11031939]
[1746425532726,14.87213142,1818.3,1818.0,8.11031939]
[1746425532869,7.13518055,1818.2,1818.0,8.11031939]
[1746425533270,14.87217154,1818.3,1818.0,8.11031939]
[1746425533785,5.49996217,1818.2,1818.0,8.11031939]
[1746425533980,5.50024751,1818.1,1818.0,8.11031939]
[1746425534187,7.5563879,1818.1,1818.0,8.11031939]
[1746425534393,16.6963879,1818.1,1818.0,8.11031939]
[1746425534599,17.2463879,1818.1,1818.0,0.11031939]
[1746425534793,5.50085263,1817.9,1817.8,4.826]
[1746425535007,7.94154688,1817.9,1817.8,4.93515748]
[1746425535223,7.94154688,1817.9,1817.8,0.10915748]
[1746425535224,6.84506823,1817.9,1817.8,0.10915748]
[1746425535432,7.94142463,1818.0,1817.8,0.10915748]
[1746425536027,5.50102303,1817.9,1817.6,8.0]
[1746425536239,6.14,1817.8,1817.7,0.10916196]
[1746425536590,6.14,1817.8,1817.5,18.32686982]
[1746425536916,6.14,1817.8,1817.6,0.10916643]
[1746425537121,6.55180137,1817.8,1817.6,0.10916643]
[1746425537836,0.7891,1817.7,1817.6,0.10916643]
[1746425540235,7.33990137,1817.8,1817.6,0.10916643]
[1746425540431,6.55180137,1817.8,1817.6,5.61084602]
[1746425540646,6.55180137,1817.8,1817.6,0.10916643]
[1746425542637,7.75707101,1817.8,1817.6,0.10916643]
[1746425542844,0.7585,1817.7,1817.6,0.10916643]
[1746425544448,6.55180137,1817.8,1817.6,0.10916643]
[1746425545847,6.55180137,1817.8,1817.6,5.61091016]
[1746425546048,6.14,1817.8,1817.6,5.66580761]
[1746425546348,6.14,1817.8,1817.6,7.45983852]
[1746425546544,6.14,1817.8,1817.6,15.45983852]
[1746425546883,11.64059719,1818.0,1817.6,15.45983852]
[1746425547265,6.14,1818.0,1817.7,5.50142061]
[1746425547420,6.14,1818.0,1817.8,5.50104085]
[1746425547769,6.14,1818.0,1817.9,8.11019352]
[1746425552643,5.50027981,1818.1,1817.9,0.11019352]
[1746425553551,6.26057981,1818.1,1817.9,0.11019352]
[1746425554333,5.50055005,1818.0,1817.9,0.11019352]
[1746425554685,5.50106224,1817.9,1817.6,8.0]
[1746425554963,5.50085263,1817.9,1817.6,8.0]
[1746425555286,3.42525147,1818.1,1817.7,5.61164875]
[1746425555287,8.04399543,1818.1,1817.7,5.61164875]
[1746425555623,1.79005722,1818.1,1817.7,19.16788415]
[1746425555826,11.64016406,1818.2,1817.8,5.50103232]
[1746425556038,6.14,1818.2,1817.8,11.00197879]
[1746425556264,11.63995856,1818.2,1817.9,0.11019352]
[1746425557761,11.63995856,1818.2,1817.9,8.11019352]
[1746425560736,5.50027943,1818.1,1817.9,8.11019352]
[1746425561570,5.50027943,1818.1,1817.9,0.11019352]
[1746425562245,6.8278268,1818.1,1817.9,0.11019352]
[1746425563945,5.50055005,1818.0,1817.9,0.11019352]
[1746425564256,6.33325005,1818.0,1817.9,0.11019352]
[1746425564551,0.8327,1818.0,1817.9,0.11019352]
[1746425564935,6.33325005,1818.0,1817.9,0.11019352]
[1746425565136,7.64937089,1818.0,1817.9,0.11019352]
[1746425566333,2.14882084,1818.0,1817.9,0.11019352]
[1746425566547,7.64937089,1818.0,1817.9,0.11019352]
[1746425567349,8.28882084,1818.0,1817.9,0.11019352]
[1746425568978,13.78937089,1818.0,1817.9,0.11019352]
[1746425570040,15.42456514,1818.0,1817.9,0.11019352]
[1746425570438,5.50102875,1817.9,1817.6,12.816]
[1746425570642,5.50102875,1817.9,1817.7,0.10948714]
[1746425570859,11.64115524,1817.8,1817.6,12.816]
[1746425571176,11.64115524,1817.8,1817.7,0.10948714]
[1746425571480,11.64115524,1817.8,1817.6,12.816]
[1746425571676,12.06510876,1817.8,1817.7,0.11215377]
[1746425571908,12.06510876,1817.8,1817.6,12.816]
[1746425572039,12.06510876,1817.8,1817.7,0.11215377]
[1746425572379,14.03097976,1817.8,1817.6,12.816]
[1746425572539,14.03097976,1817.8,1817.7,0.11215377]
[1746425572741,14.03097976,1817.8,1817.6,4.816]
[1746425572940,14.03097976,1817.8,1817.7,0.11215377]
[1746425573246,8.52982452,1817.8,1817.7,0.11215377]
[1746425573504,8.52982452,1817.8,1817.6,4.816]
[1746425573782,8.52982452,1817.8,1817.7,0.11247901]
[1746425574151,14.03097976,1817.8,1817.6,4.816]
[1746425574397,14.03097976,1817.8,1817.7,0.11247901]
[1746425574678,14.03097976,1817.8,1817.6,4.816]
[1746425574878,14.03097976,1817.8,1817.7,0.11247901]
[1746425575084,14.03097976,1817.8,1817.6,4.816]
[1746425575288,14.03097976,1817.8,1817.7,0.11247901]
[1746425575495,14.03097976,1817.8,1817.6,4.816]
[1746425575647,14.03097976,1817.8,1817.7,0.11247901]
[1746425575852,14.03097976,1817.8,1817.6,4.816]
[1746425576160,14.03097976,1817.8,1817.7,0.11247901]
[1746425576365,14.03097976,1817.8,1817.6,4.816]
[1746425576662,14.03097976,1817.8,1817.7,0.11247901]
[1746425576886,14.03097976,1817.8,1817.6,4.816]
[1746425577087,12.06510876,1817.8,1817.7,0.11247901]
[1746425577265,12.06510876,1817.8,1817.6,4.816]
[1746425577466,12.06510876,1817.8,1817.7,0.11247901]
[1746425577679,12.06510876,1817.8,1817.6,4.816]
[1746425577878,12.06510876,1817.8,1817.7,0.11247901]
[1746425578078,13.27161964,1817.8,1817.6,4.816]
[1746425578254,13.27161964,1817.8,1817.7,0.11247901]
[1746425578591,13.27161964,1817.8,1817.6,4.816]
[1746425578789,12.06510876,1817.8,1817.7,0.11247901]
[1746425579091,12.06510876,1817.8,1817.6,4.816]
[1746425579278,12.06510876,1817.8,1817.7,0.11247901]
[1746425579481,6.56395352,1817.8,1817.6,12.816]
[1746425579688,6.56395352,1817.8,1817.7,0.11247901]
[1746425579900,6.56395352,1817.8,1817.6,12.816]
[1746425580199,6.56395352,1817.8,1817.7,0.11247901]
[1746425580589,6.56395352,1817.8,1817.6,18.31775829]
[1746425580790,6.56395352,1817.8,1817.7,0.11247901]
[1746425581106,6.56395352,1817.8,1817.6,18.31757252]
[1746425581270,6.56395352,1817.8,1817.7,0.11247901]
[1746425581469,6.56395352,1817.8,1817.6,18.31757252]
[1746425581683,6.56395352,1817.8,1817.7,0.11247901]
[1746425582106,6.56395352,1817.8,1817.6,18.31757252]
[1746425582270,6.14,1817.8,1817.7,0.11247901]
[1746425582471,6.14,1817.8,1817.7,5.50145788]
[1746425582671,6.14,1817.8,1817.7,5.61393689]
[1746425583202,6.14,1818.2,1817.9,5.50074747]
[1746425583707,6.14,1818.2,1818.0,0.11246559]
[1746425584640,6.14,1818.2,1818.0,8.11246559]
[1746425587131,11.64006115,1818.2,1818.0,8.11246559]
[1746425587428,13.55840707,1818.2,1818.0,8.11246559]
[1746425587634,13.55840707,1818.2,1818.0,0.11246559]
[1746425589609,8.05834592,1818.2,1818.0,0.11246559]
[1746425589811,6.14,1818.2,1818.0,0.11246559]
[1746425590535,11.63995629,1818.2,1818.0,0.11246559]
[1746425590935,5.50024751,1818.1,1818.0,0.11246559]
[1746425591432,11.64010504,1818.2,1818.0,0.11246559]
[1746425591605,12.41080504,1818.2,1818.0,0.11246559]
[1746425591937,12.41080504,1818.2,1817.8,13.50111214]
[1746425592127,12.41080504,1818.2,1818.1,0.11194078]
[1746425592437,12.41080504,1818.2,1817.9,5.5007406]
[1746425592438,6.14,1818.2,1817.9,5.5007406]
[1746425592605,6.14,1818.2,1818.1,0.11194078]
[1746425592805,6.14,1818.2,1818.0,0.11194525]
[1746425593005,6.14,1818.2,1818.1,0.11194078]
[1746425593435,6.14,1818.2,1817.9,13.5007406]
[1746425593735,6.14,1818.2,1818.0,8.11194525]
[1746425602459,11.63995807,1818.2,1818.0,8.11194525]
[1746425602662,13.00832888,1818.2,1818.0,8.11194525]
[1746425602858,0.7551,1818.1,1818.0,8.11194525]
[1746425604948,6.25534751,1818.1,1818.0,8.11194525]
[1746425605153,0.7551,1818.1,1818.0,8.11194525]
[1746425606547,6.25534751,1818.1,1818.0,8.11194525]
[1746425606754,9.26691359,1818.1,1818.0,8.11194525]
[1746425607654,9.26691359,1818.1,1818.0,0.11194525]
[1746425611372,15.40691359,1818.1,1818.0,0.11194525]
[1746425613976,18.40691359,1818.1,1818.0,0.11194525]
[1746425614264,5.50094794,1817.9,1817.7,8.0]
[1746425614461,5.50057602,1818.0,1817.7,8.0]
[1746425615982,11.00137597,1818.0,1817.7,8.0]
[1746425616580,11.00137597,1818.0,1817.8,0.11279979]
[1746425616875,13.39218017,1818.0,1817.8,0.11279979]
[1746425617191,11.64085263,1817.9,1817.8,0.11279979]
[1746425618091,11.64085263,1817.9,1817.6,12.796]
[1746425618452,11.64085263,1817.9,1817.7,0.11280426]
[1746425618653,11.64085263,1817.9,1817.6,12.796]
[1746425618846,11.64085263,1817.9,1817.7,0.11280426]
[1746425619093,11.64085263,1817.9,1817.6,12.796]
[1746425619395,11.64085263,1817.9,1817.7,0.11280426]
[1746425619685,11.64085263,1817.9,1817.6,12.796]
[1746425620188,11.64085263,1817.9,1817.7,0.11280426]
[1746425620358,11.64085263,1817.9,1817.6,12.796]
[1746425620559,11.64085263,1817.9,1817.8,0.11279979]
[1746425620785,11.64085263,1817.9,1817.6,12.796]
[1746425620992,11.64085263,1817.9,1817.8,0.11279979]
[1746425621681,6.14,1817.9,1817.8,0.11279979]
[1746425621883,6.14,1817.9,1817.6,18.29774828]
[1746425622100,6.14,1817.9,1817.7,0.11280426]
[1746425622309,6.14,1817.9,1817.6,18.29774828]
[1746425622606,6.14,1817.9,1817.8,0.11279979]
[1746425622809,11.64095364,1817.9,1817.7,0.11280426]
[1746425623010,11.64095364,1817.9,1817.6,12.796]
[1746425623175,11.64095364,1817.9,1817.8,0.11279979]
[1746425623376,11.64095364,1817.9,1817.6,12.796]
[1746425623603,11.64095364,1817.9,1817.8,0.11279979]
[1746425624098,11.64095364,1817.9,1817.6,12.796]
[1746425624411,11.64095364,1817.9,1817.7,0.11280426]
[1746425624614,11.64095364,1817.9,1817.6,12.796]
[1746425624814,11.64095364,1817.9,1817.8,0.11279979]
[1746425625019,6.14,1817.9,1817.7,0.11280426]
[1746425625220,6.14,1817.9,1817.8,0.11279979]
[1746425625610,6.14,1817.9,1817.6,18.29773484]
[1746425625916,6.14,1817.9,1817.7,0.11280426]
[1746425626120,6.14,1817.9,1817.6,18.29773484]
[1746425626418,6.14,1817.9,1817.8,0.11279979]
[1746425626923,6.14,1817.9,1817.6,18.29773484]
[1746425627322,6.14,1817.9,1817.7,0.11280426]
[1746425627523,11.64086416,1817.9,1817.6,18.29773484]
[1746425627698,11.64086416,1817.9,1817.8,0.11279979]
[1746425627899,11.64086416,1817.9,1817.6,18.29773484]
[1746425628100,11.64086416,1817.9,1817.7,0.11280426]
[1746425628320,11.64086416,1817.9,1817.6,18.29773484]
[1746425628509,11.64086416,1817.9,1817.6,12.796]
[1746425628714,11.64086416,1817.9,1817.7,0.11280426]
[1746425628922,11.64086416,1817.9,1817.6,12.796]
[1746425629098,11.64086416,1817.9,1817.8,0.11305995]
[1746425629415,5.50128908,1817.8,1817.6,12.796]
[1746425629615,5.50128908,1817.8,1817.6,4.796]
[1746425630145,5.92131093,1817.8,1817.6,4.796]
[1746425631199,0.42002185,1817.8,1817.6,4.796]
[1746425631400,12.44461182,1817.9,1817.6,4.796]
[1746425631630,12.44461182,1817.9,1817.7,0.11306443]
[1746425631937,12.44461182,1817.9,1817.6,12.796]
[1746425632141,12.44461182,1817.9,1817.8,0.11305995]
[1746425632433,14.40266422,1817.9,1817.6,12.796]
[1746425632637,14.40266422,1817.9,1817.8,0.11305995]
[1746425632792,14.40266422,1817.9,1817.7,0.11306443]
[1746425632995,14.40266422,1817.9,1817.6,12.796]
[1746425633196,14.40266422,1817.9,1817.8,0.11305995]
[1746425633434,14.40266422,1817.9,1817.6,12.796]
[1746425633637,14.40266422,1817.9,1817.8,0.11305995]